Cogmind - Beta 13 @@@ ROGUE MODE // 2024.04.09 @ 23:33:30 Player: Zaros426 Result: Destroyed by IP-9AD(R) with Subdweller Laser Performance ------------- Evolutions (0) 0 Regions Visited (2) 400 Robots Destroyed (12) 60 Value Destroyed (249) 249 Prototype IDs (2) 40 Alien Tech Used (0) 0 Bonus (0) 0 TOTAL SCORE: 749 Bonus ------- None Cogmind --------- Core Integrity 0/250 Matter 269/300 Energy 99/100 System Corruption 0% Temperature Cool (6) Movement Core (50) Location -10/Subcaves Parts ------- > --- POWER (1) -------- (None) > --- PROPULSION (2) --- (None) > --- UTILITY (2) ------ Terrain Scan Processor > --- WEAPON (2) ------- (None) > --- INVENTORY (5) ---- Subdweller Monowheel Improved Heat Sink Small Storage Unit Improved Terrain Scanner Utility Shielding Peak State ------------ > --- POWER ------------ Ion Engine > --- PROPULSION ------- Wheel Wheel > --- UTILITY ---------- Small Storage Unit Improved Terrain Scanner > --- WEAPON ----------- Medium Laser Assault Rifle > --- INVENTORY -------- (None) [Rating: 9] Favorites ----------- Power Ion Engine Engine Ion Engine Propulsion Wheel Treads Light Treads Wheel Wheel Utility Large Storage Unit Device Improved Terrain Scanner Storage Large Storage Unit Processor Terrain Scan Processor Protection Utility Shielding Weapon Assault Rifle Energy Gun Medium Laser Ballistic Gun Assault Rifle Build | -11 -10 -10 ------- Run | Yrd Mat Sub Slots Evolved . | . . . Power . | . . . Propulsion . | . . . Utility . | . . . Weapon . | . . . Parts Attached 25 | 7 10 8 Power 1 | 1 . . Engine 1 | 1 . . Core . | . . . Reactor . | . . . Propulsion 11 | 2 3 6 Treads 1 | . . 1 Leg . | . . . Wheel 10 | 2 3 5 Hover . | . . . Flight . | . . . Utility 6 | 2 3 1 Device 2 | 1 1 . Storage 2 | 1 1 . Processor 1 | . . 1 Hackware . | . . . Protection 1 | . 1 . Artifact . | . . . Weapon 7 | 2 4 1 Energy Gun 2 | 1 . 1 Energy Cannon . | . . . Ballistic Gun 5 | 1 4 . Ballistic Cannon . | . . . Launcher . | . . . Special Weapon . | . . . Impact Weapon . | . . . Slashing Weapon . | . . . Piercing Weapon . | . . . Special Melee Weapon . | . . . Unidentified Prototypes . | . . . Parts Lost 10 | . . 10 Power 1 | . . 1 Propulsion 6 | . . 6 Utility . | . . . Weapon 3 | . . 3 Highest Loss Streak 7 | . . 7 To Critical Strikes . | . . . Average Slot Usage (%) 87 | . 97 79 Engine 11 | . 14 9 Wheel 24 | . 27 21 Device 3 | . 7 . Storage 13 | . 14 12 Processor 1 | . . 2 Protection 9 | . 6 11 Energy Gun 4 | . 1 7 Ballistic Gun 18 | . 25 12 Naked Turns . | . . . Heaviest Build 30 | 15 30 30 Greatest Support 20 | 20 20 20 Greatest Overweight (x) 2 | . 1 2 Average Overweight (x) . | . . . Largest Inventory Capacity 15 | 8 15 15 Average Capacity 11 | 7 11 13 Most Carried 9 | 2 9 9 Average Carried 5 | . 5 7 Final Capacity 15 | 8 15 5 Final Carried 9 | 2 9 5 Class Distribution -------------------- 100% | Mutant Dominant Class ---------------- Mutant | -10/Materials Mutant | -10/Subcaves Resources | -11 -10 -10 ----------- Run | Yrd Mat Sub Matter Collected 546 | 259 111 176 Remotely . | . . . Salvage Created 289 | 18 111 160 Parts 23 | 4 10 9 Haulers Intercepted . | . . . Recyclers Shooed . | . . . Parts Field Recycled . | . . . Retrieved Matter . | . . . Parts Self-Destructed 8 | . . 8 Prevented . | . . . Kills | -11 -10 -10 ------- Run | Yrd Mat Sub Combat Hostiles Destroyed 8 | . 2 6 Guns 8 | . 2 6 Classes Destroyed 7 | 1 4 2 Worker 1 | . 1 . Builder 1 | . 1 . Tunneler 1 | 1 . . Operator 1 | . 1 . Swarmer 4 | . . 4 Grunt 3 | . 2 1 Sentry 1 | . . 1 Best Kill Streak 5 | 1 3 5 Combat Bots Only 5 | . 2 5 Max Kills in Single Turn 2 | 1 2 2 Gunslinging 1 | . . 1 Exploded . | . . . Melee . | . . . Uniques/NPCs Destroyed . | . . . Combat | -11 -10 -10 -------- Run | Yrd Mat Sub Hostile Shots Fired 91 | . 15 76 Missed 25 | . 3 22 Damage Taken 958 | . 151 807 Core 260 | . 23 237 Absorbed by Shields . | . . . Redirected to Shielding 32 | . 3 29 Core Remaining (%) 100 | 100 . . Volleys Fired 42 | 1 11 30 Largest 2 | 2 2 2 Hottest 70 | 70 40 70 Shots Fired 78 | 2 22 54 Gun 78 | 2 22 54 Cannon . | . . . Launcher . | . . . Special . | . . . Kinetic 59 | 1 22 36 Thermal 19 | 1 . 18 Explosive . | . . . Electromagnetic . | . . . Robot Hit Streak 10 | 1 5 10 Robot Miss Streak 2 | . 2 2 Penetration Max . | . . . Secondary Targets 2 | . . 2 Max Gunslinging Chain 1 | . . 1 Shots Hit Robots 51 | 1 12 38 Core Hits 18 | 1 8 9 Critical Kills . | . . . Critical Parts Destroyed . | . . . Critical Strikes 1 | . . 1 Burn 1 | . . 1 Melee Attacks . | . . . Impact . | . . . Slashing . | . . . Piercing . | . . . Sneak Attacks . | . . . Combat Hostiles . | . . . Follow-up Attacks . | . . . Damage Inflicted 757 | 13 279 465 Guns 623 | 13 145 465 Cannons . | . . . Explosions 134 | . 134 . Melee . | . . . Ramming . | . . . Kinetic 449 | 13 145 291 Thermal 308 | . 134 174 Explosive . | . . . Electromagnetic . | . . . Impact . | . . . Slashing . | . . . Piercing . | . . . Highest Corruption . | . . . Average Corruption . | . . . Corruption Purged . | . . . Corruption Blocked . | . . . Overload Shots . | . . . Overflow Damage 39 | . 39 . Projectiles . | . . . Explosions 39 | . 39 . Melee . | . . . Knockbacks . | . . . Impact . | . . . Kinetic . | . . . Secondary . | . . . Self-Inflicted Damage . | . . . Shots . | . . . Rammed . | . . . Targets Rammed . | . . . Kicked . | . . . Crushed . | . . . Highest Temperature 10 | 9 10 . Average Temperature 4 | 6 4 . Received Heat Transfer 243 | . 87 156 Siege Activations . | . . . Robots Corrupted . | . . . Combat Hostiles . | . . . Parts Fried . | . . . Impact Corruptions . | . . . Robots Melted . | . . . Combat Hostiles . | . . . Parts Melted 2 | . . 2 Heat Transferred 692 | . 100 592 Parts Sabotaged . | . . . Parts Stolen . | . . . Parts Stripped . | . . . Power Chain Reactions . | . . . Alert | -11 -10 -10 ------- Run | Yrd Mat Sub Peak Influence 140 | 5 140 . Initial 3 | . 3 . Average 24 | 1 31 . Maximum Alert Level . | . . . Low Security (%) 100 | 100 100 . Level 1 . | . . . Level 2 . | . . . Level 3 . | . . . Level 4 . | . . . Level 5 . | . . . High Security . | . . . Max Security . | . . . Squads Dispatched 1 | . 1 . Investigation . | . . . Extermination . | . . . Reinforcement 1 | . 1 . Assault . | . . . Garrison . | . . . Intercept . | . . . Searches Triggered . | . . . Construction Impeded . | . . . Haulers Reinforced . | . . . Active Scanning Responses . | . . . Cargo Convoy Interrupts . | . . . Stealth | -11 -10 -10 --------- Run | Yrd Mat Sub Distress Signals . | . . . Communications Jammed . | . . . Distress Signals . | . . . Times Spotted 17 | . 3 14 Peak Tracking Total 6 | . 2 6 Tactical Retreats 2 | . . 2 Traps | -11 -10 -10 ------- Run | Yrd Mat Sub Traps Triggered 4 | . 4 . Indirectly . | . . . Trap Hack Attempts . | . . . Triggered . | . . . Disarmed . | . . . Reprogrammed . | . . . Reused . | . . . Traps Extracted . | . . . Installed . | . . . Triggered . | . . . Machines | -11 -10 -10 ---------- Run | Yrd Mat Sub Machines Disabled 2 | . 2 . Max in Single Turn 2 | . 2 . Machines Repaired . | . . . Machines Dismantled . | . . . Machines Sabotaged . | . . . Overloaded Fab Kills . | . . . Hacking | -11 -10 -10 --------- Run | Yrd Mat Sub Machines Accessed 1 | . 1 . Terminals 1 | . 1 . Fabricators . | . . . Repair Stations . | . . . Recycling Units . | . . . Scanalyzers . | . . . Garrison Access . | . . . Total Hacks 3 | . 3 . Successful 2 | . 2 . Failed 1 | . 1 . Catastrophic . | . . . Database Lockouts . | . . . Manual . | . . . Terminals 3 | . 3 . Fabricators . | . . . Repair Stations . | . . . Recycling Units . | . . . Scanalyzers . | . . . Garrison Access . | . . . Terminal Hacks 2 | . 2 . Prototype ID Bank 1 | . 1 . Dispatch Records 1 | . 1 . Fabricator Hacks . | . . . Repair Station Hacks . | . . . Recycling Unit Hacks . | . . . Scanalyzer . | . . . Garrison Access Hacks . | . . . Unauthorized Hacks . | . . . Terminals . | . . . Fabricators . | . . . Repair Stations . | . . . Recycling Units . | . . . Scanalyzers . | . . . Garrison Access . | . . . Data Cores Recovered . | . . . Used . | . . . Hacking Detections . | . . . Full Trace Events . | . . . Feedback Events . | . . . Feedback Blocked . | . . . Robot Schematics Acquired . | . . . Robots Built . | . . . Authchips . | . . . Time . | . . . Total Robot Build Rating . | . . . Part Schematics Acquired . | . . . Parts Built . | . . . Authchips . | . . . Time . | . . . Total Part Build Rating . | . . . Parts Repaired . | . . . Time . | . . . Parts Recycled . | . . . Recycled Matter . | . . . Retrieved Matter . | . . . Retrieved Components . | . . . Parts Scanalyzed . | . . . Part Schematics Acquired . | . . . Parts Damaged . | . . . Bothacking | -11 -10 -10 ------------ Run | Yrd Mat Sub Used RIF Installer . | . . . Robots Hacked . | . . . Non-combat . | . . . Combat . | . . . Robot Hacks Applied . | . . . Relay Couplers Released . | . . . Fabnet Peak Effective % . | . . . Robots Rewired . | . . . Allies Hacked . | . . . Hacks Repelled . | . . . Allies | -11 -10 -10 -------- Run | Yrd Mat Sub Total Allies . | . . . Largest Group . | . . . Highest-Rated Group . | . . . Highest-Rated Ally . | . . . Total Orders . | . . . Ally Attacks . | . . . Total Damage . | . . . Kills . | . . . Allies Corrupted . | . . . Allies Melted . | . . . Intel | -11 -10 -10 ------- Run | Yrd Mat Sub Robot Analysis Total . | . . . Derelict Logs Recovered . | . . . Drone Launches . | . . . Drone Recoveries . | . . . Exploration | -11 -10 -10 ------------- Run | Yrd Mat Sub Turns Passed 560 | 68 230 262 Spaces Moved 448 | 64 199 185 Core 60 | 1 . 59 Treads . | . . . Legs . | . . . Wheels 388 | 63 199 126 Hover . | . . . Flight . | . . . Fastest Speed 50 | 50 80 50 Average Speed 82 | 79 84 81 Slowest Speed 110 | 80 95 110 Overloaded Moves . | . . . Propulsion Burnouts . | . . . Robots Hopped . | . . . Cave-ins Triggered . | . . . Exploration Rate (%) 22 | 3 48 15 Regions Visited 2 Branch Regions 1 Pre-discovered Areas . | . . . Known Exits Taken . | . . . Unknown Exits Taken 2 | 1 1 . Scrap Searched . | . . . Spaces Dug . | . . . Terrain Destroyed 21 | . 21 . Melee . | . . . Projectile . | . . . AOE 21 | . 21 . Terrain Rammed . | . . . Walls Destroyed . | . . . Machines Disabled . | . . . Actions | -11 -10 -10 --------- Run | Yrd Mat Sub Total 550 | 75 233 242 Wait 25 | 2 8 15 Move 446 | 63 198 185 Hop . | . . . Pick Up 10 | 2 6 2 Fast Attach 13 | 7 6 . Attach 5 | . . 5 Detach . | . . . Swap 7 | . 4 3 Drop 2 | . . 2 Fire 42 | 1 11 30 Melee . | . . . Ram . | . . . Kick . | . . . Crush . | . . . Escape Stasis . | . . . Rewire . | . . . Trap . | . . . Miscellaneous . | . . . Route ------- -11/Scrapyard -10/Materials (discovered 2 exits: [*Min] / [*Sub]) -10/Subcaves (discovered 1 exit: [*Rec]) History --------- Turn | Location | Event 19 | -11/Scrapyard | Discovered new exit (range 15) 69 | -11/Scrapyard | Entered Materials 97 | -10/Materials | Discovered new exit (range 15) 293 | -10/Materials | Discovered new exit (range 9) 299 | -10/Materials | Entered Subcaves 310 | -10/Subcaves | Discovered new exit (range 15) 318 | -10/Subcaves | Build established: Mutant 387 | -10/Subcaves | Lost 3 parts (2n1w) 439 | -10/Subcaves | Shifting Twisted Machinery released Sub. Monowheel 445 | -10/Subcaves | Shifting Twisted Machinery released Spk. Treads 507 | -10/Subcaves | Core integrity fell below 50% 535 | -10/Subcaves | Core integrity fell below 20% 561 | -10/Subcaves | Destroyed by IP-9AD(R) with Subdweller Laser Last Messages --------------- 00362_ Acquired 17 matter. 00381_ Y-45 Defender suffers critical hit (Burn). 00384_ Heat Sink melted. 00384_ Y-45 Defender destroyed. 00388_ Imp. Ion Engine fries itself beyond repair. 00391_ Acquired 59 matter. 00393_ Acquired Lgt. Treads. Sub. Monowheel falls loose from the Twisted Machinery. Spk. Treads falls loose from the Twisted Machinery. 00462_ Acquired Sub. Monowheel. 00482_ Wheel destroyed. 00486_ Ion Engine destroyed. 00488_ Assault Rifle destroyed. 00502_ Med. Laser destroyed. 00515_ Wheel destroyed. 00531_ Dropped Lgt. Treads. 00531_ Wheel destroyed. 00531_ Dropped Lrg. Storage Unit. 00533_ Subatomizers dissect the Lgt. Treads. 00549_ Acquired 10 matter. Map ----- +----------------------------------------------------+ | | | | | ?????????????????????????????????????????????????? | | ?????????????????????????????????????????????????? | | ?????????????????????????????????????????????????? | | ?????????????????????????????????????????????????? | | ?????????????????????????????????????????????????? | | ?????????????????????????????????????????????????? | | ?????????????????????????????????????????????????? | | ?????????????????????????????????????????????????? | | ?????????????????????????????????????????????????? | | ?????????????????????????????????????????????????? | | ?????????????????????????????????????????????????? | | ?????????????????????????????????????????????????? | | ?????????????????????????????????????????????????? | | ?????????????????????????????????????????????????? | | ?????????????????????????????########???######???? | | ?????????? ## ??????????????##""#"#"##??# ###?? | | ????????? #??????????###"" $" ##?# ##? | | ????????? ######???""" "" #?# """""#? | | ?????????? ""##??? """##=" ### """"" | | ?????????? "" ##???""#?### ### =!"#""" | | ?????????? "" ##?#""#??#" #### "##"" | | ???????????# "" #?#""####" ## ##?#### | | ???????????# ### "## ###" ##"" ### #????? | | ???????????????# ??# ## @ ###" ## ####??? | | ??????????????? "###"# # #?## ##?? | | ???????????????#"" """ #??## ##? | | ???????????????#"""" ##???## #? | | ???????????????""#### ##### #?????## ##? | | ????????????????????###?## #??????### #?? | | ????????????????????????# R#######??# ##?? | | ????????????????????????## ## ##?# ##?? | | ?????????????????????????# ### ## | | ?????????????????????????# %R | | ?????????????????????????## % | | ??????????????????????????##### ## ## | | ??????????????????????????????## ###### #### | | ???????????????????????????????## #???# ##### | | ????????????????????????????????###???## ## | | ????????????????????????????????###????## # | | ???????????????????????????????##% #???## | | ??????????????????????????????## #### | | ??????????????????????????????# | | ??????????????????????????????# % | | ??????????????????????????????# | | ??????????????????????????????##% ## | | ???????????????????????????????## ###### | | ????????????????????????????????### ##????# #### | | ??????????????????????????????????####????## ##?? | +----------------------------------------------------+ Best States ------------- Heat Dissipation 25 Energy Generation 10 Energy Capacity 250 Matter Stores 292 Matter Capacity 300 Sight Range 16 Terrain Scan Range 16 Terrain Scan Density 85 Utility Shielding 33 Evasion (%) 50 Item Schematics ----------------- None Robot Schematics ------------------ None Fabricated ------------ Nothing Alien Tech Used ----------------- None Achievements -------------- None Challenges ------------ None Game ------ Seed NovaDeliveryTube Manual? 0 Play Time 00:10:23 Cumulative 29.7 hours Start 2024.04.09 @ 23:26:22 End 2024.04.09 @ 23:33:30 Sessions 1 Manual Loads 0 Difficulty Rogue Special Mode None Game No. 30 Rogue 30 Adventurer 0 Explorer 0 Win Type - Total 0 Types 0/0/0/0/0/0/0/0/0 Lore% 23 Gallery% 30 Achievement% 23 Wizard Run 0 Options --------- Layout 0 ASCII 0 Keyboard 0 Movement Mouse Keybinds 0 Fullscreen 1 Font 24/Smallcaps Map View 183x50 Zoom Use 0% Tactical HUD 1 Map Filters NONE Filters NONE Steam 0 RUN: ee82d7b0-4dae-4314-8a39-6c9a42d33ac0